bitfinex-derivatives/quotes_BTCF0:USTF0_20251204
["timestamp","ask_amount","ask_price","bid_price","bid_amount"]
[1764877200811,0.6342719,91955.0,91941.0,0.0292666]
[1764877200812,0.6234,91937.0,91936.0,0.59298895]
[1764877201005,0.30935,91937.0,91936.0,0.59298895]
[1764877201205,0.22171856,91946.0,91936.0,0.59298895]
[1764877201206,0.22171856,91946.0,91936.0,9.895e-05]
[1764877201401,0.00016308,91946.0,91945.0,0.59531002]
[1764877201808,0.00016308,91946.0,91938.0,0.47686]
[1764877201809,0.30935,91939.0,91938.0,0.47686]
[1764877202107,0.00016308,91946.0,91945.0,0.59289]
[1764877202308,0.00016308,91946.0,91945.0,0.95611002]
[1764877202705,0.00016308,91946.0,91945.0,0.95911002]
[1764877202910,0.30951308,91946.0,91945.0,0.95911002]
[1764877203109,0.62356308,91946.0,91945.0,0.3638]
[1764877203811,0.62356308,91946.0,91945.0,0.003]
[1764877204408,0.62356308,91946.0,91937.0,0.0108739]
[1764877204711,0.62356308,91946.0,91936.0,9.895e-05]
[1764877204712,0.00016308,91946.0,91945.0,0.58271002]
[1764877204908,0.58118,91937.0,91936.0,0.58038895]
[1764877205114,0.311743,91945.0,91944.0,0.58029]
[1764877205913,0.592053,91945.0,91944.0,0.58029]
[1764877206304,0.75007,91938.0,91937.0,0.002]
[1764877206507,1.26323,91938.0,91937.0,0.002]
[1764877207209,1.26323,91938.0,91936.0,9.895e-05]
[1764877207210,0.0108739,91937.0,91936.0,9.895e-05]
[1764877207399,0.7609451,91927.0,91926.0,0.00027196]
[1764877207599,0.5920564,91916.0,91915.0,0.01104723]
[1764877207814,0.3117468,91913.0,91912.0,0.2893]
[1764877208015,0.30087,91913.0,91912.0,0.58029]
[1764877208212,0.30087,91913.0,91912.0,0.5911669]
[1764877208508,0.66167,91917.0,91916.0,0.58029]
[1764877208706,1.17493231,91917.0,91916.0,0.58029]
[1764877208902,0.5920571,91910.0,91902.0,0.371678]
[1764877209102,0.0108775,91907.0,91900.0,0.3608]
[1764877209305,0.81403,91906.0,91905.0,0.2893]
[1764877209508,0.81403,91906.0,91905.0,0.58029]
[1764877211413,0.94208231,91917.0,91916.0,0.2893]
[1764877211618,0.58118,91909.0,91908.0,0.3608]
[1764877212008,0.58118,91906.0,91905.0,0.001]
[1764877212208,0.81407,91906.0,91905.0,0.58271002]
[1764877212409,0.5132,91906.0,91905.0,0.00542002]
[1764877212610,0.5132,91906.0,91905.0,0.58571002]
[1764877212811,0.5132,91906.0,91905.0,0.58271002]
[1764877213010,0.81407,91906.0,91905.0,0.58271002]
[1764877214008,0.5132,91906.0,91905.0,0.58271002]
[1764877214414,0.5132,91906.0,91905.0,0.58371002]
[1764877214816,1.09438,91906.0,91905.0,0.58371002]
[1764877215619,0.36090231,91917.0,91916.0,0.75424]
[1764877216212,0.51334231,91917.0,91916.0,0.75424]
[1764877216417,0.00010231,91917.0,91916.0,0.75424]
[1764877217215,0.00010231,91917.0,91916.0,1.11504]
[1764877217418,0.00016317,91925.0,91924.0,0.5911654]
[1764877217615,0.58235548,91950.0,91949.0,0.58029]
[1764877217616,0.88322548,91950.0,91949.0,0.58029]
[1764877217823,1.11827,91950.0,91949.0,0.58029]
[1764877218311,1.11827,91950.0,91949.0,0.2893]
[1764877219225,1.11827,91950.0,91948.0,0.29099]
[1764877219226,0.58118,91949.0,91948.0,0.29099]
[1764877219414,0.58118,91949.0,91943.0,0.0108731]
[1764877219721,0.58118,91949.0,91940.0,0.00016317]
[1764877219921,0.58118,91949.0,91941.0,0.0108734]
[1764877220126,0.58118,91949.0,91940.0,0.00016317]
[1764877220332,0.0108726,91948.0,91940.0,0.00258319]
[1764877221617,0.58118,91941.0,91940.0,0.00016317]
[1764877222122,0.58118,91925.0,91915.0,0.0108765]
[1764877222423,0.5920553,91925.0,91911.0,0.3608]
[1764877222729,0.58118,91925.0,91911.0,0.3608]
[1764877223024,0.58118,91925.0,91918.0,0.0108761]
[1764877223224,0.66167,91933.0,91932.0,0.58029]
[1764877223413,1.45518,91933.0,91932.0,0.2893]
[1764877223609,0.58118,91925.0,91924.0,0.6501]
[1764877225018,0.58118,91925.0,91924.0,0.3608]
[1764877226726,0.58118,91925.0,91911.0,0.58029]
[1764877226727,0.58118,91912.0,91911.0,0.58029]
[1764877226919,0.58118,91912.0,91903.0,0.3716779]
[1764877226920,0.58118,91904.0,91903.0,0.3608]
[1764877227123,0.58118,91904.0,91903.0,0.6501]
[1764877228321,0.58118,91904.0,91903.0,0.3608]
[1764877228727,0.58118,91904.0,91903.0,0.3618]
[1764877229329,0.58118,91904.0,91903.0,0.001]
[1764877230128,0.0108779,91903.0,91894.0,0.0108789]
[1764877230327,0.51316,91902.0,91894.0,0.0108789]
[1764877230721,0.27918733,91910.0,91893.0,0.3608]
[1764877230722,0.40853733,91920.0,91901.0,0.58271002]
[1764877231034,0.30087,91917.0,91916.0,0.58029]
[1764877231229,0.0108764,91916.0,91906.0,0.0108775]
[1764877231421,0.58118,91907.0,91906.0,0.0108776]
[1764877231621,0.58118,91914.0,91913.0,0.2893]
[1764877232424,3.17e-06,91921.0,91920.0,0.7651159]
[1764877232734,0.35484,91944.0,91943.0,0.58029]
[1764877233324,0.93602,91944.0,91943.0,0.58029]
[1764877233628,0.65571,91944.0,91943.0,0.58029]
[1764877233822,0.00016317,91953.0,91952.0,0.54473]
[1764877235332,0.55516,91949.0,91948.0,0.64798]
[1764877236130,0.55516,91949.0,91948.0,0.90553]
[1764877236530,0.55516,91949.0,91948.0,0.64798]
[1764877236826,0.00016317,91953.0,91909.0,0.0108772]
[1764877236827,0.29613,91940.0,91934.0,0.01103737]
[1764877237028,0.55516,91940.0,91939.0,0.00242002]
[1764877238024,0.55516,91937.0,91936.0,0.371674]
[1764877238424,0.55516,91937.0,91936.0,0.3608]
[1764877239228,0.51308,91945.0,91936.0,0.3608]
[1764877239435,0.80921,91945.0,91944.0,0.28960002]
[1764877239824,1.06824,91945.0,91944.0,0.28960002]
[1764877240135,1.06824,91945.0,91936.0,0.3618]
[1764877240136,0.55516,91937.0,91936.0,0.3618]
[1764877240532,0.55516,91937.0,91936.0,0.3608]
[1764877241433,0.51308,91945.0,91944.0,0.54473]
[1764877241731,0.80921,91945.0,91944.0,0.54473]
[1764877241943,1.06824,91945.0,91944.0,0.54473]
[1764877242233,1.06824,91945.0,91944.0,0.28718]
[1764877243128,1.06824,91945.0,91939.0,0.5556036]
[1764877243129,0.29613,91940.0,91939.0,0.5556036]
[1764877243434,1.06824,91945.0,91944.0,0.00342002]
[1764877243642,1.06824,91945.0,91944.0,0.91982312]
[1764877243935,0.51308,91945.0,91944.0,1.07218312]
[1764877244135,0.00016317,91953.0,91952.0,0.5556021]
[1764877244339,0.00016317,91953.0,91952.0,0.91882212]
[1764877246428,0.0770056,91975.0,91965.0,0.5556006]
[1764877246429,0.4888,91972.0,91965.0,0.5556006]
[1764877246629,0.4996699,91972.0,91965.0,0.9164006]
[1764877247024,0.0108701,91970.0,91965.0,0.9164006]
[1764877247833,0.0108701,91970.0,91965.0,0.90553]
[1764877248341,0.4888,91972.0,91965.0,0.90553]
[1764877252731,0.01103257,91975.0,91966.0,0.0108705]
[1764877252932,0.00016317,91975.0,91974.0,0.87179002]
[1764877253241,0.49398317,91975.0,91974.0,0.51099002]
[1764877253440,0.0108701,91970.0,91968.0,0.25543]
[1764877253639,0.0108701,91970.0,91969.0,0.51099002]
[1764877253947,0.2467001,91970.0,91969.0,0.51099002]
[1764877254338,0.00016317,91975.0,91974.0,0.5194395]
[1764877254531,0.49382,91997.0,91996.0,0.25543]
[1764877254737,0.49382,91989.0,91988.0,0.50857]
[1764877255446,0.23583,91989.0,91988.0,0.50857]
[1764877255744,0.5046869,91996.0,91995.0,0.25543]
[1764877256442,0.5046869,91996.0,91985.0,0.3608]
[1764877256443,0.49382,91989.0,91988.0,0.002]
[1764877256645,0.49382,91989.0,91988.0,0.51057]
[1764877256842,0.23583,91989.0,91988.0,0.51057]
[1764877257545,0.3716669,91997.0,91996.0,0.50857]
[1764877257746,0.8654869,91997.0,91996.0,0.25543]
[1764877259141,0.0108671,91995.0,91989.0,0.0108677]
[1764877259847,0.5046871,91995.0,91994.0,0.25543]
[1764877260241,0.5046871,91995.0,91994.0,0.50857]
[1764877261145,0.49382,91995.0,91994.0,0.86937]
[1764877261353,0.23583,91995.0,91994.0,0.86937]
[1764877261834,0.49382,91995.0,91994.0,0.87037]
[1764877262246,0.49382,91995.0,91994.0,0.50957]
[1764877262446,0.23599307,91998.0,91997.0,0.50857]
[1764877262633,0.49398307,91998.0,91997.0,0.51099002]
[1764877262839,0.00016307,91998.0,91997.0,0.51099002]
[1764877263348,0.00027172,92006.0,92005.0,0.50857]
[1764877263550,0.00027172,92006.0,92005.0,0.52185592]
[1764877264148,0.00027172,92006.0,92005.0,0.51099002]
[1764877264346,0.48768,91997.0,91996.0,0.8459069]
[1764877264645,0.24796,91997.0,91996.0,0.83504]
[1764877264845,0.24796,91997.0,91983.0,0.3608]
[1764877264846,0.48768,91984.0,91983.0,0.83504]
[1764877265042,0.00016307,91993.0,91983.0,0.83504]
[1764877265348,0.4985477,91990.0,91989.0,0.47424]
[1764877266143,0.48768,91984.0,91983.0,0.47424]
[1764877266449,0.4985476,91991.0,91990.0,0.47424]
[1764877266750,0.0108676,91991.0,91990.0,0.47424]
[1764877267249,0.4985476,91991.0,91990.0,0.47424]
[1764877267642,0.4985476,91991.0,91990.0,0.002]
[1764877268146,0.4985476,91991.0,91975.0,0.3608]
[1764877268354,0.4985511,91961.0,91960.0,0.24104]
[1764877268652,0.48768,91961.0,91960.0,0.47424]
[1764877268838,0.51248,91963.0,91962.0,0.47424]
[1764877269047,0.8593488,91980.0,91979.0,0.24104]
[1764877269245,1.3717888,91980.0,91979.0,0.24104]
[1764877269450,1.3717888,91980.0,91971.0,0.14172]
[1764877269451,0.48768,91978.0,91977.0,0.24104]
[1764877269652,0.08588211,91987.0,91971.0,0.14172]
[1764877269653,0.0108679,91988.0,91984.0,0.2332]
[1764877269847,0.2588279,91988.0,91987.0,0.47666002]
[1764877270049,0.24796,91978.0,91977.0,0.47424]
[1764877270353,0.51260307,91989.0,91978.0,0.010869]
[1764877270652,0.0108684,91984.0,91976.0,0.3608]
[1764877271051,0.0108684,91984.0,91983.0,0.00242002]
[1764877271251,0.48768,91984.0,91983.0,0.00242002]
[1764877271556,0.48768,91984.0,91983.0,0.24346002]
[1764877271751,0.48768,91984.0,91983.0,0.24104]
[1764877272146,0.48768,91984.0,91983.0,0.47424]
[1764877273646,0.51260307,91989.0,91983.0,0.47624]
[1764877273846,0.48784307,91989.0,91988.0,0.47666002]
[1764877274051,0.00016307,91989.0,91988.0,0.47666002]
[1764877274551,0.00027172,92006.0,92004.0,0.599326]
[1764877274851,0.00027172,92006.0,92005.0,0.47424]
[1764877275051,0.00027172,92006.0,92005.0,0.83746002]
[1764877277355,0.00027172,92006.0,92005.0,0.83846002]
[1764877277961,0.48795172,92006.0,92005.0,0.83846002]
[1764877278448,0.48795172,92006.0,92005.0,0.83604]
[1764877278853,0.48795172,92006.0,92005.0,0.83504]
[1764877279054,0.48795172,92006.0,92005.0,0.83604]
[1764877279554,0.48795172,92006.0,92005.0,0.83504]
[1764877281549,0.00027172,92006.0,92005.0,0.83504]
[1764877283562,0.24823172,92006.0,92005.0,0.83504]
[1764877283760,0.48795172,92006.0,92005.0,0.47424]
[1764877284162,0.48795172,92006.0,92005.0,0.47524]
[1764877284858,0.48795172,92006.0,92005.0,0.001]
[1764877285058,0.48795172,92006.0,92005.0,0.00040182]
[1764877285261,0.4985468,91997.0,91996.0,0.00016307]
[1764877286159,0.58398495,91997.0,91996.0,0.00016307]
[1764877286461,0.94478495,91997.0,91996.0,0.00016307]
[1764877287363,0.8593468,91997.0,91996.0,0.00016307]
[1764877287862,0.91723117,91997.0,91996.0,0.00016307]
[1764877288058,0.8593468,91997.0,91996.0,0.00016307]
[1764877288255,0.0108693,91977.0,91971.0,0.14172]
[1764877288562,0.48768,91971.0,91970.0,0.3608]
[1764877288748,0.48768,91971.0,91970.0,0.60184]
[1764877288947,0.58657,91971.0,91970.0,0.3608]
[1764877289147,0.4985509,91963.0,91962.0,0.24104]
[1764877289352,0.4985509,91963.0,91962.0,0.47424]
[1764877289652,0.48768,91963.0,91962.0,0.47424]
[1764877291251,0.85935,91971.0,91970.0,0.47424]
[1764877292061,0.84848,91971.0,91970.0,0.47424]
[1764877292451,0.99988,91971.0,91970.0,0.47424]
[1764877292656,0.55694479,91979.0,91978.0,0.24104]
[1764877292856,1.0107489,91979.0,91978.0,0.24104]
[1764877293054,0.2588298,91972.0,91971.0,0.61596]
[1764877293361,0.4985498,91972.0,91971.0,0.47424]
[1764877294164,0.48768,91972.0,91971.0,0.47424]
[1764877294865,0.48768,91972.0,91971.0,0.48724]
[1764877297859,0.48768,91972.0,91971.0,0.25404]
[1764877298562,0.48768,91972.0,91971.0,0.013]
[1764877301265,0.43183,91962.0,91961.0,0.00016307]
[1764877301566,1.3156609,91962.0,91961.0,0.00016307]
[1764877302369,0.43183,91943.0,91938.0,0.14172]
[1764877302570,0.94399,91943.0,91937.0,0.0108739]
[1764877303965,0.94399,91943.0,91933.0,0.00016307]
[1764877304366,0.42825,91934.0,91933.0,0.00016307]
[1764877304562,0.9512843,91934.0,91933.0,0.00016307]
[1764877304869,0.94041,91934.0,91933.0,0.40981309]
[1764877305463,0.94041,91934.0,91933.0,0.40739307]
[1764877306464,0.94041,91934.0,91933.0,0.00016307]
[1764877306666,0.94441,91934.0,91933.0,0.00016307]
[1764877307469,0.94441,91934.0,91933.0,0.00258309]
[1764877307773,0.94441,91934.0,91933.0,0.00016307]
[1764877307963,0.94441,91934.0,91933.0,0.40981309]
[1764877307964,0.004,91934.0,91933.0,0.40981309]
[1764877308659,0.51616,91934.0,91933.0,0.40981309]
[1764877309165,0.94441,91934.0,91933.0,0.40981309]
[1764877309560,0.51616,91934.0,91933.0,0.42068749]
[1764877310165,0.5162,91934.0,91933.0,0.42068749]
[1764877310560,0.004,91934.0,91933.0,0.42068749]
[1764877314479,0.43225,91934.0,91933.0,0.40981309]
[1764877314770,0.43225,91934.0,91933.0,0.40739307]
[1764877314976,0.21713,91934.0,91933.0,0.40739307]
[1764877315175,0.43225,91934.0,91933.0,0.40739307]
[1764877316770,0.004,91934.0,91933.0,0.40739307]
[1764877319879,0.43225,91934.0,91933.0,0.40739307]
[1764877320073,0.43225,91934.0,91933.0,0.00016307]
[1764877320377,0.43225,91934.0,91933.0,0.40981309]
[1764877320582,0.43225,91934.0,91933.0,0.40739307]
[1764877320876,0.4391251,91927.0,91926.0,0.00027196]
[1764877321777,0.9512451,91927.0,91926.0,0.00027196]
[1764877321977,0.21313,91927.0,91926.0,0.40992198]
[1764877322177,0.8039243,91934.0,91933.0,0.40723]
[1764877322379,1.30517,91934.0,91933.0,0.40723]
[1764877322568,0.004,91934.0,91933.0,0.40723]
[1764877323381,0.2240038,91938.0,91937.0,0.40723]
[1764877323582,0.4391238,91938.0,91937.0,0.40723]
[1764877323976,0.4391238,91938.0,91937.0,0.2043]
[1764877324177,0.5321851,91927.0,91926.0,0.00027196]
[1764877324579,0.5321851,91927.0,91902.0,0.02924067]
[1764877324580,0.3992582,91901.0,91900.0,0.3608]
[1764877324782,0.38838,91888.0,91887.0,0.20673]
[1764877325082,0.38838,91884.0,91883.0,0.52219]
[1764877325277,0.51212,91888.0,91887.0,0.40364]
[1764877325475,0.87304136,91888.0,91887.0,0.40606002]
[1764877325885,0.36092136,91888.0,91887.0,0.40606002]
[1764877326680,0.38838,91884.0,91883.0,0.11855]
[1764877326990,0.36492136,91888.0,91883.0,0.11855]
[1764877326991,0.36492136,91888.0,91883.0,0.52219]
[1764877327187,0.36492136,91888.0,91887.0,0.40606002]
[1764877327188,0.87704136,91888.0,91887.0,0.40606002]
[1764877328390,1.26542136,91888.0,91883.0,0.11855]
[1764877328588,0.38838,91884.0,91883.0,0.32528]
[1764877328783,0.003,91884.0,91883.0,0.52219]
[1764877329294,0.37856,91886.0,91885.0,0.40364]
[1764877329592,0.36492136,91888.0,91887.0,0.40364]
[1764877329793,0.36092136,91888.0,91887.0,0.40606002]
[1764877329990,0.00012136,91888.0,91887.0,0.40606002]
[1764877330588,1.36e-06,91888.0,91887.0,0.40606002]
[1764877330791,0.3885,91887.0,91886.0,0.19691]
[1764877331091,1.36e-06,91888.0,91884.0,0.11855]
[1764877331388,1.36e-06,91888.0,91887.0,0.00242002]
[1764877331593,0.3885,91885.0,91884.0,0.32528]
[1764877332092,0.52604106,91888.0,91887.0,0.40364]
[1764877332286,0.51516136,91888.0,91887.0,0.40364]
[1764877332593,0.90466136,91888.0,91878.0,0.0108809]
[1764877332795,0.51616136,91888.0,91887.0,0.40606002]
[1764877332986,0.00400136,91888.0,91887.0,0.41693982]
[1764877333293,1.36e-06,91888.0,91887.0,0.01329982]
[1764877333494,1.36e-06,91888.0,91887.0,0.41693982]
[1764877333699,0.08521635,91908.0,91887.0,0.41693982]
[1764877333700,0.3716767,91914.0,91913.0,0.40364]
[1764877333994,0.3608,91914.0,91913.0,0.40364]
[1764877334392,0.3716766,91914.0,91913.0,0.40364]
[1764877334594,0.3608,91914.0,91913.0,0.40364]
[1764877335494,0.3648,91914.0,91913.0,0.40364]
[1764877335890,0.3608,91914.0,91913.0,0.40364]
[1764877336102,0.3648,91914.0,91913.0,0.40364]
[1764877338089,0.75646,91914.0,91913.0,0.40364]
[1764877338294,0.75646,91914.0,91908.0,0.11855]
[1764877338295,0.4035372,91909.0,91908.0,0.11855]
[1764877338495,0.39266,91909.0,91908.0,0.11855]
[1764877338690,0.39266,91909.0,91908.0,0.52219]
[1764877339085,0.0108771,91911.0,91910.0,0.40364]
[1764877339293,0.3608,91912.0,91911.0,0.40364]
[1764877339505,0.3608,91912.0,91911.0,0.40606002]
[1764877339788,0.56369,91912.0,91911.0,0.40364]
[1764877340098,0.5745669,91912.0,91911.0,0.40364]
[1764877340496,0.7643369,91912.0,91911.0,0.40364]
[1764877340794,0.75346,91912.0,91911.0,0.40364]
[1764877341096,0.7643369,91912.0,91911.0,0.40364]
[1764877341499,0.4035372,91909.0,91908.0,0.32528]
[1764877342002,0.51216,91910.0,91904.0,0.00016326]
[1764877342003,0.4035377,91905.0,91904.0,0.00016326]
[1764877342294,0.4035377,91905.0,91904.0,0.00258328]
[1764877342500,0.4035377,91905.0,91904.0,0.00016326]
[1764877342797,0.4035377,91905.0,91904.0,0.20689326]
[1764877343197,0.4035377,91905.0,91904.0,0.00016326]
[1764877343989,0.4035377,91905.0,91904.0,0.20689326]
[1764877344191,0.4035377,91905.0,91904.0,0.40380326]
[1764877344391,0.4085377,91905.0,91904.0,0.40380326]
[1764877344793,0.4035377,91905.0,91904.0,0.40380326]
[1764877344991,0.4085377,91905.0,91904.0,0.40380326]
[1764877345392,0.4035377,91905.0,91904.0,0.40380326]
[1764877345706,0.4075377,91905.0,91904.0,0.40380326]
[1764877346400,0.4075377,91905.0,91904.0,0.20689326]
[1764877347101,0.4035377,91905.0,91904.0,0.20689326]
[1764877347304,0.4075377,91905.0,91904.0,0.20689326]
[1764877347693,0.4035377,91905.0,91904.0,0.20689326]
[1764877347895,0.004,91905.0,91904.0,0.40380326]
[1764877348597,0.3608,91906.0,91905.0,0.52219]
[1764877348796,0.3608,91906.0,91905.0,0.52461002]
[1764877350800,0.003,91906.0,91905.0,0.52461002]
[1764877350995,0.27930475,91914.0,91905.0,0.52461002]
[1764877350996,0.3608,91922.0,91921.0,0.4145158]
[1764877351197,0.00016326,91923.0,91922.0,0.40364]
[1764877351398,0.51208,91944.0,91941.0,0.0108734]
[1764877351601,0.05819665,91949.0,91948.0,0.40364]
[1764877351801,0.05819665,91956.0,91955.0,0.40364]
[1764877352005,0.51204,91957.0,91956.0,0.40364]
[1764877352305,0.51204,91957.0,91956.0,0.41693172]
[1764877352502,0.51204,91957.0,91956.0,0.53548172]
[1764877354205,0.51204,91957.0,91956.0,0.52461002]
[1764877355106,0.4937417,91956.0,91955.0,0.3608]
[1764877355305,0.4270426,91948.0,91947.0,0.00016317]
[1764877355609,0.3608,91956.0,91955.0,0.39461]
[1764877355802,0.512,91959.0,91958.0,0.39461]
[1764877356006,0.3608,91972.0,91965.0,0.4054806]
[1764877356206,0.0108695,91975.0,91965.0,0.40790062]
[1764877356505,0.3608,91975.0,91965.0,0.39703002]
[1764877357210,0.19381501,91966.0,91965.0,0.39703002]
[1764877357402,0.42747551,91966.0,91965.0,0.39461]
[1764877357596,0.0108708,91963.0,91956.0,0.48549]
[1764877357815,0.00143501,91966.0,91965.0,0.39461]
[1764877358004,0.42847551,91966.0,91965.0,0.39461]
[1764877358205,0.0108709,91963.0,91956.0,0.48549]
[1764877358510,0.4270409,91963.0,91962.0,0.19373002]
[1764877358706,0.4270409,91963.0,91962.0,0.39703002]
[1764877359208,0.3608,91964.0,91956.0,0.3608]
[1764877359209,0.41617,91957.0,91956.0,0.3608]
[1764877360210,0.0108725,91949.0,91947.0,0.00016317]
[1764877360400,0.41617,91948.0,91947.0,0.00016317]
[1764877361610,0.41617,91948.0,91947.0,0.00258319]
[1764877361805,0.41617,91948.0,91947.0,0.00016317]
[1764877362608,0.41717,91948.0,91947.0,0.19147317]
[1764877362807,0.41717,91948.0,91947.0,0.00016317]
[1764877363308,0.41717,91948.0,91947.0,0.00258319]
[1764877363502,0.41717,91948.0,91947.0,0.00016317]
[1764877365306,0.50464532,91948.0,91947.0,0.00016317]
[1764877365501,0.41717,91948.0,91947.0,0.00016317]
[1764877367211,0.41617,91948.0,91947.0,0.00016317]
[1764877367510,0.41717,91948.0,91947.0,0.00016317]
[1764877368402,0.41717,91948.0,91947.0,0.41655319]
[1764877368604,0.001,91948.0,91947.0,0.41655319]
[1764877369607,0.41238,91948.0,91947.0,0.41655319]
[1764877369808,0.41238,91948.0,91947.0,0.41413317]
[1764877369809,0.41138,91948.0,91947.0,0.41413317]
[1764877370010,0.9231,91956.0,91955.0,0.41397]
[1764877370211,0.9231,91956.0,91955.0,0.41639002]
[1764877370516,0.9231,91956.0,91955.0,0.41397]
[1764877370915,0.20233501,91966.0,91965.0,0.41397]
[1764877371212,0.71405501,91966.0,91965.0,0.41397]
[1764877372105,0.93440551,91966.0,91965.0,0.41397]
[1764877372301,0.92353501,91966.0,91965.0,0.41397]
[1764877372704,0.92553501,91966.0,91965.0,0.41397]
[1764877372906,0.51415501,91966.0,91965.0,0.4248406]
[1764877373318,0.7830486,91982.0,91981.0,0.21448]
[1764877373515,1.2947286,91982.0,91981.0,0.21448]
[1764877373910,0.41138,91973.0,91972.0,0.77477]
[1764877374713,0.41138,91973.0,91972.0,0.41397]
[1764877375719,0.41338,91973.0,91972.0,0.41397]
[1764877378614,0.41138,91964.0,91963.0,0.36096308]
[1764877378819,0.92294,91964.0,91963.0,0.77493308]
[1764877380721,0.92294,91964.0,91963.0,0.78580388]
[1764877380919,0.51156,91964.0,91963.0,0.78580388]
[1764877381131,0.4222487,91981.0,91980.0,0.41397]
[1764877381422,0.41915973,91982.0,91981.0,0.4248387]
[1764877381423,0.00016308,91982.0,91981.0,0.4248387]
[1764877381611,0.00016308,91982.0,91981.0,0.42725872]
[1764877382011,0.00016308,91982.0,91981.0,0.77719002]
[1764877382517,0.26025973,91982.0,91981.0,0.77719002]
[1764877382711,0.26425973,91982.0,91981.0,0.77719002]
[1764877383116,0.00416308,91982.0,91981.0,0.77719002]
[1764877384511,0.05819665,91994.0,91993.0,0.51997]
[1764877384720,0.46781325,91999.0,91998.0,0.3997]
[1764877384920,0.4096166,91999.0,91998.0,0.3997]
[1764877385119,0.39875,91999.0,91998.0,0.3997]
[1764877385321,0.39875,91999.0,91993.0,0.48107]
[1764877385322,0.0583425,92001.0,91999.0,0.0108666]
[1764877385517,0.0583425,92001.0,92000.0,0.40212002]
[1764877386128,0.39875,91994.0,91993.0,0.7605]
[1764877386421,0.4096172,91994.0,91993.0,0.3608]
[1764877386722,0.39875,91992.0,91991.0,0.00016308]
[1764877387225,0.4570925,91992.0,91991.0,0.00016308]
[1764877388212,0.39875,91992.0,91991.0,0.00016308]
[1764877388417,0.40275,91992.0,91991.0,0.00016308]
[1764877395126,0.91407,91992.0,91991.0,0.19808308]
[1764877395432,0.91407,91992.0,91991.0,0.39986308]
[1764877395830,0.91407,91992.0,91991.0,0.19808308]
[1764877396224,0.91403,91992.0,91991.0,0.19808308]
[1764877396428,0.91403,91992.0,91991.0,0.00016308]
[1764877397530,0.91403,91992.0,91991.0,0.0025831]
[1764877397726,0.40275,91992.0,91991.0,0.2005031]
[1764877397920,0.91399,91992.0,91991.0,0.4022831]
[1764877398123,0.004,91992.0,91991.0,0.7630831]
[1764877400736,0.40275,91992.0,91991.0,0.7630831]
[1764877401130,0.40275,91992.0,91991.0,0.4022831]
[1764877401325,0.004,91992.0,91991.0,0.4022831]
[1764877401530,0.2111074,91992.0,91991.0,0.4022831]
[1764877401730,0.4136174,91992.0,91991.0,0.4022831]
[1764877402038,0.4136174,91992.0,91991.0,0.0025831]
[1764877402231,0.4136174,91992.0,91991.0,0.00016308]
[1764877403033,0.9248174,91992.0,91991.0,0.00016308]
[1764877404032,0.4096186,91982.0,91981.0,0.3608]
[1764877404233,0.9791961,91982.0,91981.0,0.3608]
[1764877405137,0.9811961,91982.0,91981.0,0.3608]
[1764877405736,0.0108692,91977.0,91973.0,0.55872]
[1764877405931,0.39875,91974.0,91973.0,0.55872]
[1764877406331,0.39875,91974.0,91973.0,0.7605]
[1764877407735,0.05842506,91982.0,91981.0,0.3997]
[1764877408039,0.90991,91982.0,91981.0,0.3997]
[1764877408434,0.96833506,91982.0,91981.0,0.3997]
[1764877408633,0.96833506,91982.0,91981.0,0.19792]
[1764877409236,0.96833506,91982.0,91981.0,0.3997]
[1764877409237,0.91191,91982.0,91981.0,0.3997]
[1764877410441,0.7094,91982.0,91981.0,0.3997]
[1764877410636,0.91191,91982.0,91981.0,0.3997]
[1764877411842,0.97038036,91982.0,91981.0,0.3997]
[1764877412543,0.91191,91982.0,91981.0,0.3997]
[1764877412742,0.39875,91974.0,91973.0,0.3997]
[1764877413735,0.19624,91974.0,91973.0,0.3997]
[1764877413931,0.93711036,91982.0,91981.0,0.3636]
[1764877414138,0.94597896,91982.0,91981.0,0.36602002]
[1764877414437,0.8875086,91982.0,91981.0,0.36602002]
[1764877415443,0.94797896,91982.0,91981.0,0.36602002]
[1764877416138,0.77042896,91982.0,91981.0,0.36602002]
[1764877416345,0.5239486,91982.0,91981.0,0.36602002]
[1764877416644,0.77042896,91982.0,91981.0,0.36602002]
[1764877417037,0.57155036,91982.0,91981.0,0.36602002]
[1764877417340,0.00016308,91984.0,91981.0,0.76602002]
[1764877417541,0.36548,91993.0,91992.0,0.3636]
[1764877417739,0.42395036,91993.0,91992.0,0.3636]
[1764877418136,0.05847036,91994.0,91993.0,0.3636]
[1764877418339,0.05847036,91995.0,91994.0,0.3636]
[1764877418532,0.7099568,91997.0,91996.0,0.3636]
[1764877418936,0.8874268,91997.0,91996.0,0.3636]
[1764877419138,0.69909,91997.0,91996.0,0.3636]
[1764877419348,0.51108,91997.0,91996.0,0.3636]
[1764877421140,0.8924268,91997.0,91996.0,0.3636]
[1764877421444,0.88156,91997.0,91996.0,0.3636]
[1764877421642,0.51608,91997.0,91996.0,0.3636]
[1764877423446,0.51608,91997.0,91996.0,0.7244]
[1764877423951,0.005,91997.0,91996.0,0.7244]
[1764877429748,0.17825,91997.0,91996.0,0.7244]
[1764877430051,0.005,91997.0,91996.0,0.7244]
[1764877432945,0.005,91997.0,91987.0,0.010868]
[1764877432946,0.06345894,91997.0,91987.0,0.16847]
[1764877433147,0.3543179,91988.0,91987.0,0.33827]
[1764877433352,0.05845894,91991.0,91990.0,0.33827]
[1764877433551,0.0108672,91995.0,91994.0,0.33827]
[1764877434253,0.005,91997.0,91996.0,0.33827]
[1764877434448,0.06336215,91997.0,91996.0,0.34069002]
[1764877434643,0.17825,91997.0,91996.0,0.34069002]
[1764877434843,0.34845,91997.0,91996.0,0.34069002]
[1764877435458,0.34345,91997.0,91996.0,0.34069002]
[1764877436159,0.34745,91997.0,91996.0,0.34069002]
[1764877436752,0.34345,91995.0,91994.0,0.3608]
[1764877437060,0.34345,91995.0,91994.0,0.52927]
[1764877437358,0.34345,91995.0,91994.0,0.69907]
[1764877438862,0.34745,91995.0,91994.0,0.69907]
[1764877439957,0.34745,91995.0,91994.0,0.33827]
[1764877441359,0.34745,91995.0,91985.0,0.69907]
[1764877441360,0.34345,91986.0,91985.0,0.69907]
[1764877441660,0.3543181,91986.0,91985.0,0.69907]
[1764877441859,0.4126941,91986.0,91985.0,0.33827]